fUST/lending_fUST_20240829
["ID","MTS","AMOUNT","RATE_DAILY","PERIOD"]
[336540395,1724931040098,-162.378984,0.00019178,2]
[336540396,1724931040110,-442.3350624,0.000192,2]
[336540397,1724931040121,-426.62095404,0.00019215,2]
[336540398,1724931040133,-818.7757816,0.000193,2]
[336540399,1724931040144,-426.62095404,0.00019352,2]
[336540400,1724931040154,-36171.860293,0.00019442,2]
[336540401,1724931040165,-160.0,0.0001945,4]
[336540402,1724931040175,-500.0,0.00019452,2]
[336540403,1724931040186,-500.0,0.00019452,2]
[336540404,1724931040198,-500.0,0.00019452,2]
[336540405,1724931040210,-500.0,0.00019452,2]
[336540406,1724931040221,-617.28,0.00019452,2]
[336540407,1724931040232,-500.0,0.00019452,2]
[336540408,1724931040244,-590.56,0.00019452,2]
[336540409,1724931040253,-500.0,0.00019452,2]
[336540410,1724931040263,-500.0,0.00019452,2]
[336540411,1724931040274,-500.0,0.00019452,2]
[336540412,1724931040284,-500.0,0.00019452,2]
[336540413,1724931040295,-258.87501339,0.00019452,2]
[336540414,1724931040305,-500.0,0.00019452,2]
[336540415,1724931040315,-500.0,0.00019452,2]
[336540416,1724931040326,-500.0,0.00019452,2]
[336540417,1724931040336,-500.0,0.00019452,2]
[336540418,1724931040346,-500.0,0.00019452,2]
[336540419,1724931040358,-500.0,0.00019452,2]
[336540420,1724931040367,-500.0,0.00019452,2]
[336540421,1724931040377,-500.0,0.00019452,2]
[336540422,1724931040387,-500.0,0.00019452,2]
[336540423,1724931040396,-500.0,0.00019452,2]
[336540424,1724931040406,-500.0,0.00019452,2]
[336540425,1724931040415,-500.0,0.00019452,2]
[336540426,1724931040424,-500.0,0.00019452,2]
[336540427,1724931040433,-441.04154102,0.00019452,2]
[336540586,1724931046067,-500.0,0.00019178,2]
[336540588,1724931046078,-58.95845898,0.00019452,2]
[336540590,1724931046088,-64.89154102,0.00019452,2]
[336540593,1724931046100,-435.10845898,0.00019452,2]
[336540595,1724931046117,-94.45312159,0.00019452,2]
[336540597,1724931046130,-405.54687841,0.00019452,2]
[336540599,1724931046140,-500.0,0.00019452,2]
[336540602,1724931046153,-500.0,0.00019452,2]
[336540604,1724931046162,-500.0,0.00019452,2]
[336540606,1724931046174,-500.0,0.00019452,2]
[336540608,1724931046184,-500.0,0.00019452,2]
[336540610,1724931046195,-500.0,0.00019452,2]
[336540612,1724931046205,-500.0,0.00019452,2]
[336540614,1724931046215,-509.42638862,0.00019452,2]
[336540616,1724931046225,-502.43,0.00019452,2]
[336540618,1724931046235,-1810.77,0.00019452,2]
[336540620,1724931046245,-3311.08,0.00019452,2]
[336540622,1724931046255,-2427.77,0.00019452,2]
[336540624,1724931046264,-2524.09,0.00019452,2]
[336540626,1724931046273,-500.0,0.00019452,2]
[336540628,1724931046282,-1715.91,0.00019452,2]
[336540630,1724931046291,-500.0,0.00019452,2]
[336540631,1724931046300,-4891.12,0.00019452,2]
[336540633,1724931046311,-500.0,0.00019452,2]
[336540635,1724931046322,-1587.69,0.00019452,2]
[336540637,1724931046333,-445.52005218,0.00019452,2]
[336540639,1724931046344,-500.0,0.00019452,2]
[336540641,1724931046355,-500.0,0.00019452,2]
[336540642,1724931046366,-500.0,0.00019452,2]
[336540643,1724931046378,-7167.83,0.00019452,2]
[336540645,1724931046388,-500.0,0.00019452,2]
[336540647,1724931046401,-500.0,0.00019452,2]
[336540649,1724931046411,-500.0,0.00019452,2]
[336540651,1724931046421,-500.0,0.00019452,2]
[336540653,1724931046431,-12663.36,0.00019452,2]
[336540655,1724931046441,-500.0,0.00019452,2]
[336540656,1724931046450,-500.0,0.00019452,2]
[336540658,1724931046460,-500.64,0.00019452,2]
[336540660,1724931046469,-500.0,0.00019452,2]
[336540662,1724931046479,-500.0,0.00019452,2]
[336540663,1724931046488,-2717.02,0.00019452,2]
[336540665,1724931046498,-1789.83,0.00019452,2]
[336540667,1724931046508,-1641.73,0.00019452,2]
[336540669,1724931046518,-2019.47,0.00019452,2]
[336540671,1724931046528,-500.0,0.00019452,2]
[336540673,1724931046538,-500.0,0.00019452,2]
[336540674,1724931046548,-500.0,0.00019452,2]
[336540675,1724931046557,-500.0,0.00019452,2]
[336540677,1724931046567,-500.0,0.00019452,2]
[336540678,1724931046577,-1046.83,0.00019452,2]
[336540679,1724931046586,-500.0,0.00019452,2]
[336540680,1724931046596,-539.67,0.00019452,2]
[336540681,1724931046607,-500.0,0.00019452,2]
[336540682,1724931046617,-500.0,0.00019452,2]
[336540683,1724931046626,-1406.49,0.00019452,2]
[336540684,1724931046635,-563.56,0.00019452,2]
[336540685,1724931046645,-500.0,0.00019452,2]
[336540686,1724931046656,-500.0,0.00019452,2]
[336540687,1724931046666,-500.0,0.00019452,2]
[336540688,1724931046676,-500.0,0.00019452,2]
[336540689,1724931046687,-500.0,0.00019452,2]
[336540690,1724931046696,-1289.75,0.00019452,2]
[336540691,1724931046705,-500.0,0.00019452,2]
[336540692,1724931046715,-639.99,0.00019452,2]
[336540693,1724931046724,-500.0,0.00019452,2]
[336540694,1724931046733,-500.0,0.00019452,2]
[336540695,1724931046743,-500.0,0.00019452,2]
[336540696,1724931046752,-500.0,0.00019452,2]
[336540697,1724931046762,-1171.26,0.00019452,2]
[336540698,1724931046772,-3783.44,0.00019452,2]
[336540699,1724931046780,-500.0,0.00019452,2]
[336540700,1724931046790,-26780.39,0.00019452,2]
[336540701,1724931046799,-500.0,0.00019452,2]
[336540702,1724931046809,-500.0,0.00019452,2]
[336540703,1724931046818,-500.0,0.00019452,2]
[336540704,1724931046827,-649.18,0.00019452,2]
[336540705,1724931046836,-600.77,0.00019452,2]
[336540706,1724931046845,-1351.96,0.00019452,2]
[336540707,1724931046855,-500.0,0.00019452,2]
[336540708,1724931046864,-500.0,0.00019452,2]
[336540709,1724931046873,-560.26,0.00019452,2]
[336540710,1724931046883,-500.0,0.00019452,2]
[336540711,1724931046893,-3582.51,0.00019452,2]
[336540712,1724931046903,-500.0,0.00019452,2]
[336540713,1724931046913,-154.0915253,0.00019452,2]
[336540714,1724931046927,-153.0,0.00019452,2]
[336540715,1724931046939,-153.0,0.00019452,2]
[336540716,1724931046949,-426.62095404,0.00019489,2]
[336540717,1724931046960,-426.62095404,0.00019626,2]
[336540718,1724931046970,-1832.55536707,0.00019716,2]
[336540719,1724931046986,-1187.39535924,0.00019716,2]
[336540758,1724931067249,113.97803542,0.00014247,2]
[336540759,1724931067280,156.29919452,0.00014247,2]
[336540777,1724931524832,15264.1159239,0.000249,120]
[336540787,1724932045138,-294.2347704,0.00014247,2]
[336540788,1724932045164,-238.71262444,0.00014247,2]
[336540789,1724932048124,-66.88028556,0.00014247,2]
[336540790,1724932048148,-174.9797707,0.00018104,2]
[336540791,1724932048173,-46.56036776,0.00018376,2]
[336540842,1724932232149,-245.9542474,0.00018203,2]
[336540845,1724932232159,-175.022116,0.00018904,2]
[336540848,1724932232168,-500.0,0.00019,7]
[336540851,1724932232179,-409.3878908,0.00019,2]
[336540854,1724932232189,-207.7300879,0.00019,2]
[336540856,1724932232200,-1000.0,0.00019,19]
[336540858,1724932232211,-5321.07723062,0.00019075,2]
[336540860,1724932232220,-306.0,0.000191,2]
[336540862,1724932232229,-300.0,0.00019167,2]
[336540864,1724932232238,-402.10342728,0.00019168,2]
[336540866,1724932232255,-1756.24545313,0.00019168,2]
[336540903,1724932238308,-39301.89330066,0.00019168,2]
[336540905,1724932238325,-4838.67348003,0.00019168,2]
[336540906,1724932238334,-1976.54465278,0.0001917,2]
[336540909,1724932238445,-327428.51202636,0.0001917,2]
[336540910,1724932238456,-80000.0,0.0001917,2]
[336540911,1724932238466,-160.0,0.00019175,3]
[336540912,1724932238476,-500.0,0.00019178,2]
[336540913,1724932238486,-500.0,0.00019178,2]
[336540914,1724932238496,-500.0,0.00019178,2]
[336540915,1724932238509,-500.0,0.00019178,2]
[336540916,1724932238518,-500.0,0.00019178,2]
[336540917,1724932238527,-199.06352556,0.00019178,2]
[336540918,1724932238537,-500.0,0.00019178,2]
[336540919,1724932238547,-500.0,0.00019178,2]
[336540920,1724932238556,-500.0,0.00019178,2]
[336540921,1724932238566,-500.0,0.00019178,2]
[336540922,1724932238576,-503.11666538,0.00019178,2]
[336540923,1724932238585,-500.0,0.00019178,2]
[336540924,1724932238595,-500.0,0.00019178,2]
[336540925,1724932238605,-500.0,0.00019178,2]
[336540926,1724932238616,-500.0,0.00019178,2]
[336540927,1724932238626,-500.0,0.00019178,2]
[336540928,1724932238636,-500.0,0.00019178,2]
[336540929,1724932238646,-211.98822254,0.00019178,2]
[336540930,1724932238656,-507.34085156,0.00019178,2]
[336540931,1724932238666,-500.0,0.00019178,2]
[336540932,1724932238676,-575.39,0.00019178,2]
[336540933,1724932238685,-500.0,0.00019178,2]
[336540934,1724932238696,-500.0,0.00019178,2]
[336540935,1724932238705,-500.0,0.00019178,2]
[336540936,1724932238716,-500.0,0.00019178,2]
[336540937,1724932238727,-500.0,0.00019178,2]
[336540938,1724932238738,-500.0,0.00019178,2]
[336540939,1724932238751,-593.2,0.00019178,2]
[336540940,1724932238761,-436.00654321,0.00019178,2]
[336540941,1724932238771,-500.0,0.00019178,2]
[336540942,1724932238781,-500.0,0.00019178,2]
[336540943,1724932238790,-572.58314431,0.00019178,2]
[336540944,1724932238800,-500.0,0.00019178,2]
[336540945,1724932238811,-500.0,0.00019178,2]
[336540946,1724932238822,-500.0,0.00019178,2]
[336540947,1724932238833,-624.37,0.00019178,2]
[336540948,1724932238842,-502.05815287,0.00019178,2]
[336540949,1724932238853,-500.0,0.00019178,2]
[336540950,1724932238864,-500.0,0.00019178,2]
[336540951,1724932238873,-500.0,0.00019178,2]
[336540952,1724932238883,-500.0,0.00019178,2]
[336540953,1724932238894,-500.0,0.00019178,2]
[336540954,1724932238903,-500.0,0.00019178,2]
[336540955,1724932238914,-500.0,0.00019178,2]
[336540956,1724932238923,-500.0,0.00019178,2]
[336540957,1724932238933,-500.0,0.00019178,2]
[336540958,1724932238943,-500.0,0.00019178,2]
[336540959,1724932238952,-521.67563571,0.00019178,2]
[336540960,1724932238962,-500.0,0.00019178,2]
[336540961,1724932238972,-527.2,0.00019178,2]
[336540962,1724932238981,-611.28,0.00019178,2]
[336540963,1724932238992,-500.0,0.00019178,2]
[336540964,1724932239005,-500.0,0.00019178,2]
[336540965,1724932239015,-578.56,0.00019178,2]
[336540966,1724932239025,-500.0,0.00019178,2]
[336540967,1724932239035,-500.0,0.00019178,2]
[336540968,1724932239045,-523.51,0.00019178,2]
[336540969,1724932239056,-500.0,0.00019178,2]
[336540970,1724932239065,-500.0,0.00019178,2]
[336540971,1724932239075,-500.0,0.00019178,2]
[336540972,1724932239085,-500.0,0.00019178,2]
[336540973,1724932239095,-500.0,0.00019178,2]
[336540974,1724932239105,-500.0,0.00019178,2]
[336540975,1724932239115,-500.0,0.00019178,2]
[336540976,1724932239125,-500.0,0.00019178,2]
[336540977,1724932239135,-500.0,0.00019178,2]
[336540978,1724932239145,-500.0,0.00019178,2]
[336540979,1724932239155,-500.0,0.00019178,2]
[336540980,1724932239165,-500.0,0.00019178,2]
[336540981,1724932239175,-500.0,0.00019178,2]
[336540982,1724932239186,-500.0,0.00019178,2]
[336540983,1724932239195,-369.29874692,0.00019178,2]
[336540984,1724932239205,-225.57303828,0.00019178,2]
[336540985,1724932239215,-500.0,0.00019178,2]
[336540986,1724932239225,-3035.16,0.00019178,2]
[336540987,1724932239234,-500.0,0.00019178,2]
[336540988,1724932239244,-500.0,0.00019178,2]
[336540989,1724932239257,-501.6363804,0.00019178,2]
[336540990,1724932239267,-500.0,0.00019178,2]
[336540991,1724932239277,-500.0,0.00019178,2]
[336540992,1724932239287,-215.52432109,0.00019178,2]
[336540993,1724932239297,-500.0,0.00019178,2]
[336540994,1724932239307,-500.0,0.00019178,2]
[336540995,1724932239319,-500.0,0.00019178,2]
[336540996,1724932239329,-500.95485156,0.00019178,2]
[336540997,1724932239339,-500.0,0.00019178,2]
[336540998,1724932239349,-613.01,0.00019178,2]
[336540999,1724932239359,-500.0,0.00019178,2]
[336541000,1724932239369,-503.5535538,0.00019178,2]
[336541001,1724932239378,-500.0,0.00019178,2]
[336541002,1724932239388,-500.0,0.00019178,2]
[336541003,1724932239399,-500.0,0.00019178,2]
[336541004,1724932239409,-500.0,0.00019178,2]
[336541005,1724932239418,-500.0,0.00019178,2]
[336541006,1724932239428,-1759.18,0.00019178,2]
[336541007,1724932239437,-500.0,0.00019178,2]
[336541008,1724932239447,-266.21949025,0.00019178,2]
[336541021,1724932240205,-2047.53050975,0.00019178,2]
[336541022,1724932240216,-2308.12,0.00019178,2]
[336541023,1724932240226,-500.0,0.00019178,2]
[336541024,1724932240236,-1455.38,0.00019178,2]
[336541026,1724932240247,-500.0,0.00019178,2]
[336541028,1724932240259,-500.0,0.00019178,2]
[336541030,1724932240268,-500.0,0.00019178,2]
[336541032,1724932240277,-500.0,0.00019178,2]
[336541033,1724932240287,-4483.52,0.00019178,2]
[336541034,1724932240298,-500.0,0.00019178,2]
[336541035,1724932240310,-500.0,0.00019178,2]
[336541036,1724932240322,-500.0,0.00019178,2]
[336541037,1724932240332,-500.0,0.00019178,2]
[336541038,1724932240342,-500.0,0.00019178,2]
[336541040,1724932240351,-500.0,0.00019178,2]
[336541041,1724932240363,-11691.41,0.00019178,2]
[336541042,1724932240373,-500.0,0.00019178,2]
[336541043,1724932240382,-500.0,0.00019178,2]
[336541044,1724932240393,-563.56,0.00019178,2]
[336541045,1724932240403,-5177.75966992,0.00019178,2]
[336541046,1724932240415,-717.80582962,0.00019178,2]
[336541068,1724932243156,-783.97450046,0.00019178,2]
[336541069,1724932243165,-500.0,0.00019178,2]
[336541070,1724932243175,-577.92,0.00019178,2]
[336541071,1724932243185,-500.0,0.00019178,2]
[336541072,1724932243194,-500.0,0.00019178,2]
[336541073,1724932243204,-500.0,0.00019178,2]
[336541074,1724932243213,-500.0,0.00019178,2]
[336541075,1724932243222,-213.56236432,0.00019178,2]
[336541076,1724932243232,-500.0,0.00019178,2]
[336541077,1724932243241,-500.0,0.00019178,2]
[336541078,1724932243250,-500.0,0.00019178,2]
[336541079,1724932243263,-500.0,0.00019178,2]
[336541081,1724932243275,-500.0,0.00019178,2]
[336541082,1724932243284,-500.0,0.00019178,2]
[336541083,1724932243293,-643.98692845,0.00019178,2]
[336541084,1724932243302,-500.0,0.00019178,2]
[336541085,1724932243312,-500.0,0.00019178,2]
[336541086,1724932243324,-500.0,0.00019178,2]
[336541087,1724932243333,-500.0,0.00019178,2]
[336541088,1724932243344,-500.0,0.00019178,2]
[336541089,1724932243353,-500.0,0.00019178,2]
[336541090,1724932243363,-1851.18,0.00019178,2]
[336541091,1724932243373,-1596.83,0.00019178,2]
[336541092,1724932243382,-500.0,0.00019178,2]
[336541093,1724932243392,-500.0,0.00019178,2]
[336541094,1724932243401,-500.0,0.00019178,2]
[336541095,1724932243411,-500.0,0.00019178,2]
[336541096,1724932243421,-959.6,0.00019178,2]
[336541097,1724932243430,-500.0,0.00019178,2]
[336541098,1724932243439,-500.0,0.00019178,2]
[336541099,1724932243449,-500.0,0.00019178,2]
[336541100,1724932243458,-1678.38,0.00019178,2]
[336541101,1724932243467,-500.0,0.00019178,2]
[336541102,1724932243476,-500.0,0.00019178,2]
[336541103,1724932243485,-2014.97,0.00019178,2]
[336541104,1724932243494,-500.0,0.00019178,2]
[336541105,1724932243507,-606.08,0.00019178,2]
[336541106,1724932243515,-500.0,0.00019178,2]
[336541107,1724932243525,-500.0,0.00019178,2]
[336541108,1724932243534,-2572.88,0.00019178,2]
[336541109,1724932243543,-500.0,0.00019178,2]
[336541110,1724932243553,-500.0,0.00019178,2]
[336541111,1724932243562,-500.0,0.00019178,2]
[336541112,1724932243571,-500.0,0.00019178,2]
[336541113,1724932243581,-578.28,0.00019178,2]
[336541114,1724932243591,-1182.27,0.00019178,2]
[336541115,1724932243600,-500.0,0.00019178,2]
[336541116,1724932243609,-25156.52,0.00019178,2]
[336541117,1724932243618,-525.12,0.00019178,2]
[336541118,1724932243628,-500.0,0.00019178,2]
[336541119,1724932243637,-545.83,0.00019178,2]
[336541120,1724932243646,-500.0,0.00019178,2]
[336541121,1724932243655,-501.58118533,0.00019178,2]
[336541122,1724932243665,-500.0,0.00019178,2]
[336541123,1724932243674,-635.08,0.00019178,2]
[336541124,1724932243683,-1073.66,0.00019178,2]
[336541125,1724932243692,-500.0,0.00019178,2]
[336541126,1724932243701,-500.0,0.00019178,2]
[336541127,1724932243710,-500.0,0.00019178,2]
[336541128,1724932243720,-500.0,0.00019178,2]
[336541129,1724932243730,-500.0,0.00019178,2]
[336541130,1724932243739,-614.02,0.00019178,2]
[336541131,1724932243750,-500.0,0.00019178,2]
[336541132,1724932243762,-500.0,0.00019178,2]
[336541133,1724932243771,-586.66,0.00019178,2]
[336541134,1724932243783,-500.0,0.00019178,2]
[336541135,1724932243794,-500.0,0.00019178,2]
[336541136,1724932243804,-500.0,0.00019178,2]
[336541137,1724932243813,-500.0,0.00019178,2]
[336541138,1724932243823,-500.0,0.00019178,2]
[336541139,1724932243833,-3468.15,0.00019178,2]
[336541140,1724932243843,-500.0,0.00019178,2]
[336541141,1724932243853,-3283.97,0.00019178,2]
[336541142,1724932243862,-1239.3,0.00019178,2]
[336541143,1724932243871,-1597.68,0.00019178,2]
[336541144,1724932243880,-563.72,0.00019178,2]
[336541145,1724932243892,-500.0,0.00019178,2]
[336541146,1724932243903,-500.0,0.00019178,2]
[336541147,1724932243915,-500.0,0.00019178,2]
[336541148,1724932243926,-153.0,0.00019178,2]
[336541149,1724932243936,-153.0,0.0001926,2]
[336541150,1724932243947,-902.7327148,0.0001926,2]
[336541151,1724932243958,-818.918761,0.0001926,2]
[336541152,1724932243969,-151.064,0.00019368,2]
[336541153,1724932243978,-500.0,0.00019441,2]
[336541154,1724932243988,-271.899006,0.00019442,2]
[336541155,1724932243999,-271.899006,0.00019442,2]
[336541156,1724932244011,-151.0,0.00019442,2]
[336541157,1724932244021,-151.0,0.00019442,2]
[336541158,1724932244031,-151.0,0.00019442,2]
[336541159,1724932244041,-151.0,0.00019442,2]
[336541160,1724932244052,-151.0,0.00019442,2]
[336541161,1724932244063,-152.528178,0.00019442,2]
[336541162,1724932244072,-151.0,0.00019442,2]
[336541163,1724932244083,-69448.3734917,0.00019442,2]
[336541164,1724932244093,-500.0,0.00019451,2]
[336541165,1724932244103,-500.0,0.00019451,2]
[336541166,1724932244113,-1490.19224816,0.00019452,5]
[336541167,1724932244122,-500.0,0.00019452,2]
[336541168,1724932244131,-500.0,0.00019452,2]
[336541169,1724932244140,-500.0,0.00019452,2]
[336541170,1724932244150,-151.929367,0.00019452,2]
[336541171,1724932244160,-500.0,0.00019452,2]
[336541172,1724932244169,-500.0,0.00019452,2]
[336541173,1724932244178,-500.0,0.00019452,2]
[336541174,1724932244188,-500.0,0.00019452,2]
[336541175,1724932244197,-151.0,0.00019452,2]
[336541176,1724932244206,-575.39,0.00019452,2]
[336541177,1724932244215,-500.0,0.00019452,2]
[336541178,1724932244224,-151.0,0.00019452,2]
[336541179,1724932244234,-151.0,0.00019452,2]
[336541180,1724932244243,-500.0,0.00019452,2]
[336541181,1724932244254,-500.0,0.00019452,2]
[336541182,1724932244263,-500.0,0.00019452,2]
[336541183,1724932244272,-500.0,0.00019452,2]
[336541184,1724932244280,-500.0,0.00019452,2]
[336541185,1724932244289,-500.0,0.00019452,2]
[336541186,1724932244298,-500.0,0.00019452,2]
[336541187,1724932244308,-500.0,0.00019452,2]
[336541188,1724932244318,-500.0,0.00019452,2]
[336541189,1724932244329,-500.0,0.00019452,2]
[336541190,1724932244338,-500.0,0.00019452,2]
[336541191,1724932244347,-500.0,0.00019452,2]
[336541192,1724932244357,-3035.16,0.00019452,2]
[336541193,1724932244367,-251.44,0.00019452,2]
[336541194,1724932244376,-500.0,0.00019452,2]
[336541195,1724932244386,-500.0,0.00019452,2]
[336541196,1724932244395,-500.0,0.00019452,2]
[336541197,1724932244404,-500.0,0.00019452,2]
[336541198,1724932244415,-231.56322919,0.00019452,2]
[336541199,1724932244424,-1759.18,0.00019452,2]
[336541200,1724932244433,-2313.75,0.00019452,2]
[336541201,1724932244442,-2308.12,0.00019452,2]
[336541202,1724932244452,-271.899006,0.00019452,2]
[336541203,1724932244461,-271.899006,0.00019452,2]
[336541204,1724932244471,-271.899006,0.00019452,2]
[336541205,1724932244481,-271.899006,0.00019452,2]
[336541206,1724932244490,-500.0,0.00019452,2]
[336541207,1724932244502,-1455.38,0.00019452,2]
[336541208,1724932244514,-500.0,0.00019452,2]
[336541209,1724932244524,-500.0,0.00019452,2]
[336541210,1724932244535,-151.0,0.00019452,2]
[336541211,1724932244545,-151.0,0.00019452,2]
[336541212,1724932244556,-500.0,0.00019452,2]
[336541213,1724932244566,-4483.52,0.00019452,2]
[336541214,1724932244576,-500.0,0.00019452,2]
[336541215,1724932244586,-500.0,0.00019452,2]
[336541216,1724932244597,-11691.41,0.00019452,2]
[336541217,1724932244607,-325.64996833,0.00019452,2]
[336541218,1724932244622,-174.35003167,0.00019452,2]
[336541219,1724932244632,-888.48710834,0.00019452,2]
[336541220,1724932244650,-4998.4128,0.00019452,2]
[336541233,1724932246156,-312.295,0.00019452,2]
[336541234,1724932246168,-414.4783,0.00019452,2]
[336541292,1724933227126,-186.52982,0.00014247,2]
[336541293,1724933227148,-267.21668336,0.00014247,2]
[336541295,1724933237225,-23.09658064,0.00014247,2]
[336541296,1724933237249,-174.9797707,0.00017702,2]
[336541297,1724933237273,-92.70401159,0.00018,2]
[336541298,1724933246134,-150.0778623,0.00018,2]
[336541337,1724933432213,-649.31656669,0.0001783,2]
[336541344,1724933432265,-636.53625817,0.0001783,2]
[336541351,1724933432320,-3848.16734024,0.0001783,2]
[336541353,1724933432331,-445.01812611,0.00018,2]
[336541355,1724933432343,-165.258812,0.00018003,2]
[336541357,1724933432353,-165.258812,0.00018159,2]
[336541359,1724933432364,-165.258812,0.00018316,2]
[336541361,1724933432376,-165.258812,0.00018472,2]
[336541363,1724933432386,-165.258812,0.00018628,2]
[336541364,1724933432396,-409.4593805,0.000187,2]
[336541365,1724933432407,-165.258812,0.00018785,2]
[336541368,1724933432419,-166.27101,0.00018904,2]
[336541369,1724933432429,-165.258812,0.00018941,2]
[336541371,1724933432438,-465.49218122,0.00018947,2]
[336541372,1724933432448,-306.0,0.00018978,2]
[336541374,1724933432458,-2000.0,0.00019,2]
[336541379,1724933432650,-300.0,0.00019077,2]
[336541380,1724933432663,-168.51980635,0.00019078,2]
[336541381,1724933432676,-2353.97454596,0.00019078,2]
[336541382,1724933432689,-293.56680005,0.00019078,2]
[336541385,1724933438414,-2008.4012308,0.00019078,2]
[336541387,1724933438424,-306.0,0.00019078,2]
[336541389,1724933438434,-409.4593805,0.00019078,2]
[336541390,1724933438443,-409.4593805,0.00019078,2]
[336541391,1724933438454,-318.98,0.00019168,3]
[336541393,1724933438464,-17393.6688998,0.00019168,2]
[336541394,1724933438474,-167.01624718,0.00019173,2]
[336541395,1724933438483,-500.0,0.00019178,2]
[336541396,1724933438494,-500.0,0.00019178,2]
[336541398,1724933438503,-179.91601236,0.00019178,2]
[336541400,1724933438513,-502.3629359,0.00019178,2]
[336541401,1724933438523,-500.0,0.00019178,2]
[336541402,1724933438533,-189.04030193,0.00019178,2]
[336541403,1724933438543,-500.0,0.00019178,2]
[336541404,1724933438554,-507.11900283,0.00019178,2]
[336541405,1724933438564,-500.0,0.00019178,2]
[336541406,1724933438574,-500.0,0.00019178,2]
[336541407,1724933438591,-500.0,0.00019178,2]
[336541408,1724933438600,-500.0,0.00019178,2]
[336541409,1724933438610,-500.0,0.00019178,2]
[336541410,1724933438619,-500.0,0.00019178,2]
[336541411,1724933438629,-500.0,0.00019178,2]
[336541412,1724933438638,-461.69423287,0.00019178,2]
[336541413,1724933438648,-568.04311647,0.00019178,2]
[336541415,1724933438658,-500.0,0.00019178,2]
[336541417,1724933438669,-500.0,0.00019178,2]
[336541418,1724933438681,-500.0,0.00019178,2]
[336541419,1724933438691,-183.96375008,0.00019178,2]
[336541420,1724933438702,-500.0,0.00019178,2]
[336541421,1724933438715,-259.37132773,0.00019178,2]
[336541422,1724933438725,-500.0,0.00019178,2]
[336541423,1724933438734,-500.0,0.00019178,2]
[336541424,1724933438744,-2782.23,0.00019178,2]
[336541425,1724933438755,-500.0,0.00019178,2]
[336541426,1724933438767,-500.0,0.00019178,2]
[336541427,1724933438777,-500.0,0.00019178,2]
[336541428,1724933438787,-500.0,0.00019178,2]
[336541429,1724933438798,-500.0,0.00019178,2]
[336541430,1724933438808,-500.0,0.00019178,2]
[336541431,1724933438818,-500.0,0.00019178,2]
[336541432,1724933438830,-1662.8,0.00019178,2]
[336541433,1724933438840,-502.73512532,0.00019178,2]
[336541434,1724933438850,-2115.77,0.00019178,2]
[336541435,1724933438861,-500.0,0.00019178,2]
[336541436,1724933438872,-500.0,0.00019178,2]
[336541437,1724933438883,-230.42956364,0.00019178,2]
[336541438,1724933438893,-1334.1,0.00019178,2]
[336541439,1724933438905,-163.56340085,0.00019178,2]
[336541440,1724933438916,-4109.9,0.00019178,2]
[336541441,1724933438926,-500.0,0.00019178,2]
[336541442,1724933438936,-500.0,0.00019178,2]
[336541443,1724933438946,-1531.11,0.00019178,2]
[336541444,1724933438957,-6125.66,0.00019178,2]